fUSD/lending_fUSD_20260613
["ID","MTS","AMOUNT","RATE_DAILY","PERIOD"]
[424941086,1781307042000,-500.0,0.00013356,2]
[424941089,1781307042000,-728.65,0.00013364,2]
[424941079,1781307042000,-728.65,0.00013349,2]
[424941084,1781307042000,-500.0,0.00013356,2]
[424941082,1781307042000,-505.48364925,0.00013356,2]
[424941120,1781307042000,-150.0,0.00013488,2]
[424941091,1781307042000,-728.65,0.00013379,2]
[424941095,1781307042000,-728.65,0.00013408,2]
[424941097,1781307042000,-728.65,0.00013422,2]
[424941099,1781307042000,-728.65,0.00013436,2]
[424941104,1781307042000,-728.65,0.0001345,2]
[424941102,1781307042000,-1500.0,0.00013447,2]
[424941106,1781307042000,-728.65,0.00013464,2]
[424941109,1781307042000,-728.65,0.00013478,2]
[424941111,1781307042000,-150.0,0.00013488,2]
[424941113,1781307042000,-150.0,0.00013488,2]
[424941115,1781307042000,-150.0,0.00013488,2]
[424941093,1781307042000,-728.65,0.00013394,2]
[424941174,1781307042000,-500.0,0.00013698,2]
[424941270,1781307042000,-500.0,0.00013699,2]
[424941181,1781307042000,-500.0,0.00013698,2]
[424941242,1781307042000,-500.0,0.00013699,2]
[424941246,1781307042000,-500.0,0.00013699,2]
[424941248,1781307042000,-500.0,0.00013699,2]
[424941250,1781307042000,-500.0,0.00013699,2]
[424941255,1781307042000,-500.0,0.00013699,2]
[424941253,1781307042000,-429.32237924,0.00013699,2]
[424941257,1781307042000,-500.0,0.00013699,2]
[424941259,1781307042000,-500.0,0.00013699,2]
[424941262,1781307042000,-500.0,0.00013699,2]
[424941268,1781307042000,-500.0,0.00013699,2]
[424941264,1781307042000,-500.0,0.00013699,2]
[424941277,1781307042000,-500.0,0.00013699,2]
[424941273,1781307042000,-500.0,0.00013699,2]
[424941275,1781307042000,-500.0,0.00013699,2]
[424941280,1781307042000,-500.0,0.00013699,2]
[424941281,1781307042000,-500.0,0.00013699,2]
[424941285,1781307042000,-500.0,0.00013699,2]
[424941283,1781307042000,-500.0,0.00013699,2]
[424941287,1781307042000,-1812.589,0.00013782,2]
[424941289,1781307042000,-5875.35882077,0.00013808,2]
[424941179,1781307042000,-500.0,0.00013698,2]
[424941244,1781307042000,-500.0,0.00013699,2]
[424941240,1781307042000,-500.0,0.00013699,2]
[424941266,1781307042000,-500.0,0.00013699,2]
[424941235,1781307042000,-500.0,0.00013699,2]
[424941183,1781307042000,-500.0,0.00013698,2]
[424941237,1781307042000,-500.0,0.00013699,2]
[424941200,1781307042000,-500.0,0.00013698,2]
[424941189,1781307042000,-206.26714691,0.00013698,2]
[424941202,1781307042000,-500.0,0.00013698,2]
[424941193,1781307042000,-500.0,0.00013698,2]
[424941204,1781307042000,-500.0,0.00013698,2]
[424941206,1781307042000,-500.0,0.00013698,2]
[424941191,1781307042000,-500.0,0.00013698,2]
[424941197,1781307042000,-500.0,0.00013698,2]
[424941195,1781307042000,-500.0,0.00013698,2]
[424941185,1781307042000,-500.0,0.00013698,2]
[424941228,1781307042000,-20357.63,0.00013699,2]
[424941210,1781307042000,-500.0,0.00013698,2]
[424941213,1781307042000,-500.0,0.00013698,2]
[424941216,1781307042000,-500.0,0.00013698,2]
[424941219,1781307042000,-500.0,0.00013698,2]
[424941221,1781307042000,-500.0,0.00013698,2]
[424941233,1781307042000,-500.0,0.00013699,2]
[424941226,1781307042000,-9999.99,0.00013699,2]
[424941224,1781307042000,-200.0,0.00013699,2]
[424941231,1781307042000,-500.0,0.00013699,2]
[424941208,1781307042000,-500.0,0.00013698,2]
[424941368,1781307043000,-1014.1049555,0.0001485,2]
[424941359,1781307043000,-426.0,0.00014777,2]
[424941354,1781307043000,-325.0,0.00014763,2]
[424941357,1781307043000,-486.51623986,0.00014776,2]
[424941339,1781307043000,-500.0,0.00014726,2]
[424941366,1781307043000,-570.0,0.00014846,2]
[424941361,1781307043000,-708.0,0.00014778,2]
[424941371,1781307043000,-666.66666,0.0001485,2]
[424941352,1781307043000,-426.0,0.00014758,2]
[424941364,1781307043000,-23498.0,0.00014822,2]
[424941382,1781307043000,-666.66667,0.0001486,2]
[424941378,1781307043000,-1227.0,0.00014859,2]
[424941387,1781307043000,-500.0,0.0001486,2]
[424941389,1781307043000,-222.73823727,0.0001486,2]
[424941375,1781307043000,-382.0,0.00014859,2]
[424941373,1781307043000,-666.66667,0.0001485,2]
[424941392,1781307043000,-269.57,0.0001486,2]
[424941380,1781307043000,-3556.0,0.00014859,2]
[424941395,1781307043000,-302946.0049313,0.00014861,2]
[424941407,1781307043000,-500.0,0.00014861,2]
[424941397,1781307043000,-251922.259946,0.00014861,2]
[424941413,1781307043000,-500.0,0.00014861,2]
[424941384,1781307043000,-457.52,0.0001486,2]
[424941333,1781307043000,-151.0,0.0001463,2]
[424941300,1781307043000,-500.0,0.00014128,14]
[424941337,1781307043000,-9533.5655801,0.000147,2]
[424941409,1781307043000,-500.0,0.00014861,2]
[424941296,1781307043000,-250.0,0.00014,2]
[424941291,1781307043000,-971.0,0.00013967,2]
[424941298,1781307043000,-3305.88721663,0.00014113,2]
[424941294,1781307043000,-1555.5,0.00013995,2]
[424941303,1781307043000,-500.0,0.00014145,2]
[424941305,1781307043000,-500.0,0.00014145,2]
[424941307,1781307043000,-217.71,0.00014168,2]
[424941311,1781307043000,-1161.16,0.00014296,2]
[424941324,1781307043000,-200.0,0.00014418,2]
[424941313,1781307043000,-18069.53,0.00014313,2]
[424941317,1781307043000,-500.0,0.00014399,16]
[424941309,1781307043000,-500.0,0.0001427,15]
[424941320,1781307043000,-440.31,0.000144,14]
[424941315,1781307043000,-5875.35882077,0.00014354,2]
[424941322,1781307043000,-1000.0,0.000144,2]
[424941345,1781307043000,-358.97863428,0.00014736,2]
[424941335,1781307043000,-500.0,0.00014636,2]
[424941347,1781307043000,-426.0,0.00014739,2]
[424941343,1781307043000,-199.18434189,0.00014732,2]
[424941331,1781307043000,-350.0,0.000146,2]
[424941329,1781307043000,-1613.0535,0.00014543,2]
[424941327,1781307043000,-1696.15675821,0.00014443,2]
[424941341,1781307043000,-426.0,0.00014729,2]
[424941400,1781307043000,-500.0,0.00014861,2]
[424941350,1781307043000,-583.75197279,0.0001474,2]
[424941404,1781307043000,-500.0,0.00014861,2]
[424941481,1781307043000,-500.0,0.00014861,2]
[424941479,1781307043000,-500.0,0.00014861,2]
[424941483,1781307043000,-500.0,0.00014861,2]
[424941473,1781307043000,-500.0,0.00014861,2]
[424941471,1781307043000,-500.0,0.00014861,2]
[424941474,1781307043000,-500.0,0.00014861,2]
[424941476,1781307043000,-500.0,0.00014861,2]
[424941469,1781307043000,-500.0,0.00014861,2]
[424941475,1781307043000,-500.0,0.00014861,2]
[424941487,1781307043000,-500.0,0.00014861,2]
[424941485,1781307043000,-500.0,0.00014861,2]
[424941492,1781307043000,-500.0,0.00014861,2]
[424941490,1781307043000,-500.0,0.00014861,2]
[424941494,1781307043000,-500.0,0.00014861,2]
[424941496,1781307043000,-500.0,0.00014861,2]
[424941505,1781307043000,-500.0,0.00014861,2]
[424941498,1781307043000,-500.0,0.00014861,2]
[424941500,1781307043000,-500.0,0.00014861,2]
[424941502,1781307043000,-500.0,0.00014861,2]
[424941507,1781307043000,-500.0,0.00014861,2]
[424941509,1781307043000,-500.0,0.00014861,2]
[424941511,1781307043000,-500.0,0.00014861,2]
[424941514,1781307043000,-500.0,0.00014861,2]
[424941477,1781307043000,-500.0,0.00014861,2]
[424941467,1781307043000,-500.0,0.00014861,2]
[424941411,1781307043000,-500.0,0.00014861,2]
[424941464,1781307043000,-500.0,0.00014861,2]
[424941462,1781307043000,-500.0,0.00014861,2]
[424941402,1781307043000,-500.0,0.00014861,2]
[424941415,1781307043000,-500.0,0.00014861,2]
[424941422,1781307043000,-500.0,0.00014861,2]
[424941424,1781307043000,-500.0,0.00014861,2]
[424941418,1781307043000,-500.0,0.00014861,2]
[424941428,1781307043000,-500.0,0.00014861,2]
[424941426,1781307043000,-500.0,0.00014861,2]
[424941430,1781307043000,-500.0,0.00014861,2]
[424941432,1781307043000,-500.0,0.00014861,2]
[424941435,1781307043000,-500.0,0.00014861,2]
[424941437,1781307043000,-500.0,0.00014861,2]
[424941420,1781307043000,-500.0,0.00014861,2]
[424941441,1781307043000,-500.0,0.00014861,2]
[424941439,1781307043000,-500.0,0.00014861,2]
[424941516,1781307043000,-500.0,0.00014861,2]
[424941445,1781307043000,-500.0,0.00014861,2]
[424941447,1781307043000,-500.0,0.00014861,2]
[424941451,1781307043000,-500.0,0.00014861,2]
[424941450,1781307043000,-500.0,0.00014861,2]
[424941458,1781307043000,-500.0,0.00014861,2]
[424941454,1781307043000,-500.0,0.00014861,2]
[424941456,1781307043000,-500.0,0.00014861,2]
[424941443,1781307043000,-500.0,0.00014861,2]
[424941460,1781307043000,-500.0,0.00014861,2]
[424941570,1781307044000,-151.0,0.00014861,2]
[424941580,1781307044000,-426.0,0.00014879,2]
[424941577,1781307044000,-10000.0,0.00014876,2]
[424941575,1781307044000,-426.0,0.00014876,2]
[424941573,1781307044000,-426.0,0.00014867,2]
[424941582,1781307044000,-163.0,0.0001488,2]
[424941596,1781307044000,-8686.0196,0.000149,2]
[424941594,1781307044000,-5800.0,0.000149,2]
[424941584,1781307044000,-5800.0,0.00014891,2]
[424941589,1781307044000,-300.0,0.00014899,2]
[424941601,1781307044000,-5875.35882077,0.000149,2]
[424941587,1781307044000,-986.95196959,0.00014893,2]
[424941591,1781307044000,-160.52,0.000149,2]
[424941603,1781307044000,-582.34811193,0.000149,2]
[424941606,1781307044000,-434.0,0.00014916,2]
[424941608,1781307044000,-173.05383907,0.00014925,2]
[424941619,1781307044000,-350.0,0.00014959,2]
[424941568,1781307044000,-151.0,0.00014861,2]
[424941599,1781307044000,-3305.88721663,0.000149,2]
[424941565,1781307044000,-151.0,0.00014861,2]
[424941535,1781307044000,-500.0,0.00014861,2]
[424941561,1781307044000,-151.0,0.00014861,2]
[424941520,1781307044000,-500.0,0.00014861,2]
[424941522,1781307044000,-500.0,0.00014861,2]
[424941525,1781307044000,-500.0,0.00014861,2]
[424941527,1781307044000,-500.0,0.00014861,2]
[424941533,1781307044000,-500.0,0.00014861,2]
[424941518,1781307044000,-500.0,0.00014861,2]
[424941529,1781307044000,-500.0,0.00014861,2]
[424941531,1781307044000,-500.0,0.00014861,2]
[424941563,1781307044000,-153.028596,0.00014861,2]
[424941538,1781307044000,-500.0,0.00014861,2]
[424941542,1781307044000,-500.0,0.00014861,2]
[424941540,1781307044000,-500.0,0.00014861,2]
[424941548,1781307044000,-500.0,0.00014861,2]
[424941551,1781307044000,-151.0,0.00014861,2]
[424941556,1781307044000,-151.0,0.00014861,2]
[424941546,1781307044000,-500.0,0.00014861,2]
[424941553,1781307044000,-151.0,0.00014861,2]
[424941558,1781307044000,-151.0,0.00014861,2]
[424941544,1781307044000,-500.0,0.00014861,2]
[424941624,1781307044000,-325.0,0.00014983,2]
[424941626,1781307044000,-18069.53,0.00014983,2]
[424941621,1781307044000,-971.0,0.00014967,2]
[424941674,1781307044000,-500.0,0.00014999,21]
[424941672,1781307044000,-500.0,0.00014999,21]
[424941688,1781307044000,-500.0,0.00014999,21]
[424941690,1781307044000,-500.0,0.00014999,21]
[424941694,1781307044000,-2000.0,0.00014999,2]
[424941696,1781307044000,-250.0,0.00014999,2]
[424941692,1781307044000,-431.64286952,0.00014999,21]
[424941699,1781307044000,-307.59763668,0.00014999,2]
[424941668,1781307044000,-500.0,0.00014999,21]
[424941683,1781307044000,-500.0,0.00014999,21]
[424941679,1781307044000,-500.0,0.00014999,21]
[424941628,1781307044000,-426.0,0.00014997,2]
[424941686,1781307044000,-500.0,0.00014999,21]
[424941701,1781307044000,-24348.16180343,0.00015,2]
[424941703,1781307044000,-406.42812507,0.00015,2]
[424941702,1781307044000,-2660.0895101,0.00015,2]
[424941707,1781307044000,-56306.45597116,0.00015,2]
[424941706,1781307044000,-65.613703,0.00015,2]
[424941677,1781307044000,-500.0,0.00014999,21]
[424941670,1781307044000,-500.0,0.00014999,21]
[424941681,1781307044000,-500.0,0.00014999,21]
[424941662,1781307044000,-500.0,0.00014999,21]
[424941666,1781307044000,-500.0,0.00014999,21]
[424941613,1781307044000,-350.0,0.00014935,2]
[424941617,1781307044000,-426.0,0.00014957,2]
[424941610,1781307044000,-222.63972367,0.00014927,2]
[424941615,1781307044000,-426.0,0.00014936,2]
[424941632,1781307044000,-500.0,0.00014999,17]
[424941630,1781307044000,-1286.89619659,0.00014999,5]
[424941635,1781307044000,-500.0,0.00014999,18]
[424941637,1781307044000,-500.0,0.00014999,19]
[424941639,1781307044000,-500.0,0.00014999,20]
[424941644,1781307044000,-500.0,0.00014999,21]
[424941646,1781307044000,-500.0,0.00014999,21]
[424941642,1781307044000,-500.0,0.00014999,21]
[424941650,1781307044000,-500.0,0.00014999,21]
[424941648,1781307044000,-500.0,0.00014999,21]
[424941664,1781307044000,-500.0,0.00014999,21]
[424941653,1781307044000,-500.0,0.00014999,21]
[424941657,1781307044000,-500.0,0.00014999,21]
[424941655,1781307044000,-500.0,0.00014999,21]
[424941659,1781307044000,-500.0,0.00014999,21]
[424941709,1781307045000,-600.0,0.00015,2]
[424941711,1781307045000,-919.39818052,0.00015,2]
[424941710,1781307045000,-755.80481717,0.00015,2]
[424941714,1781307045000,-11839.8860545,0.00015,2]
[424941713,1781307045000,-1374.76,0.00013455,2]
[424941708,1781307045000,-1736.33370989,0.00015,2]
[424941718,1781307045000,-294.21742783,0.0001499,2]
[424941712,1781307045000,-272.751806,0.00012205,2]
[424941720,1781307045000,-251.05228349,0.0001499,2]
[424941717,1781307045000,-294.21742783,0.00014851,2]
[424941721,1781307045000,-6094.14771651,0.00015,2]
[424941719,1781307045000,-43.16514434,0.0001499,2]
[424941724,1781307046000,-6538.58952795,0.00015,2]
[424941725,1781307046000,-1389.4386276,0.00015,2]
[424941722,1781307046000,-1358.0,0.00012404,2]
[424941723,1781307046000,-5583.10047205,0.00015,2]
[424941744,1781307460000,-415.492,7.661e-05,2]
[424941746,1781307515000,-250.0,8.427e-05,2]
[424941747,1781307566000,-467.72201149,8.427e-05,2]
[424941748,1781307622000,-500.0,8.427e-05,2]
[424941749,1781307674000,-301.61831471,8.427e-05,2]
[424941750,1781307728000,-159.48247902,8.748e-05,2]
[424941752,1781307782000,-410.74297956,9.067e-05,2]
[424941753,1781307783000,209.56598618,0.00021,120]
[424941755,1781307794000,419.13197236,0.00021,120]
[424941757,1781307802000,628.69795854,0.00021,120]
[424941759,1781307813000,838.26394472,0.00021,120]
[424941760,1781307834000,-333.682029,9.067e-05,2]
[424941762,1781307888000,-492.18069683,9.067e-05,2]
[424941763,1781307942000,-500.0,9.068e-05,2]
[424941764,1781307944000,-462.73474109,9.068e-05,2]
[424941767,1781308090000,-2249.98147386,9.068e-05,2]
[424941768,1781308115000,-908.7061271,9.067e-05,2]
[424941773,1781308168000,-500.0,9.066e-05,2]
[424941774,1781308221000,-230.1374654,9.066e-05,2]
[424941786,1781308233000,-134.23313573,9.066e-05,2]
[424941787,1781308233000,-894.61906583,9.066e-05,2]
[424941788,1781308233000,-894.61906583,9.066e-05,2]
[424941790,1781308233000,-894.61906583,9.066e-05,2]
[424941789,1781308233000,-894.61906583,9.066e-05,2]
[424941791,1781308233000,-894.61906583,9.066e-05,2]
[424941792,1781308233000,-894.61906583,9.066e-05,2]
[424941785,1781308233000,-760.3859301,9.066e-05,2]
[424941795,1781308233000,-894.61906583,9.066e-05,2]
[424941794,1781308233000,-894.61906583,9.066e-05,2]
[424941796,1781308233000,-894.61906583,9.066e-05,2]
[424941798,1781308233000,-894.61906583,9.066e-05,2]
[424941797,1781308233000,-894.61906583,9.066e-05,2]
[424941800,1781308233000,-894.61906583,9.066e-05,2]
[424941799,1781308233000,-894.61906583,9.066e-05,2]
[424941793,1781308233000,-894.61906583,9.066e-05,2]
[424941826,1781308234000,-894.61906583,9.066e-05,2]
[424941825,1781308234000,-894.61906583,9.066e-05,2]
[424941827,1781308234000,-894.61906583,9.066e-05,2]
[424941828,1781308234000,-894.61906583,9.066e-05,2]
[424941831,1781308234000,-894.61906583,9.066e-05,2]
[424941830,1781308234000,-894.61906583,9.066e-05,2]
[424941833,1781308234000,-894.61906583,9.066e-05,2]
[424941832,1781308234000,-894.61906583,9.066e-05,2]
[424941837,1781308234000,-894.61906583,9.066e-05,2]
[424941835,1781308234000,-894.61906583,9.066e-05,2]
[424941836,1781308234000,-894.61906583,9.066e-05,2]
[424941839,1781308234000,-894.61906583,9.066e-05,2]
[424941841,1781308234000,-879.70874807,9.066e-05,2]
[424941844,1781308234000,-879.70874807,9.066e-05,2]
[424941840,1781308234000,-879.70874807,9.066e-05,2]
[424941838,1781308234000,-894.61906583,9.066e-05,2]
[424941843,1781308234000,-879.70874807,9.066e-05,2]
[424941824,1781308234000,-894.61906583,9.066e-05,2]
[424941834,1781308234000,-894.61906583,9.066e-05,2]
[424941822,1781308234000,-894.61906583,9.066e-05,2]
[424941810,1781308234000,-894.61906583,9.066e-05,2]
[424941819,1781308234000,-894.61906583,9.066e-05,2]
[424941801,1781308234000,-894.61906583,9.066e-05,2]
[424941804,1781308234000,-894.61906583,9.066e-05,2]
[424941803,1781308234000,-894.61906583,9.066e-05,2]
[424941802,1781308234000,-894.61906583,9.066e-05,2]
[424941805,1781308234000,-894.61906583,9.066e-05,2]
[424941806,1781308234000,-894.61906583,9.066e-05,2]
[424941807,1781308234000,-894.61906583,9.066e-05,2]
[424941808,1781308234000,-894.61906583,9.066e-05,2]
[424941812,1781308234000,-894.61906583,9.066e-05,2]
[424941821,1781308234000,-894.61906583,9.066e-05,2]
[424941814,1781308234000,-894.61906583,9.066e-05,2]
[424941842,1781308234000,-879.70874807,9.066e-05,2]
[424941811,1781308234000,-894.61906583,9.066e-05,2]
[424941809,1781308234000,-894.61906583,9.066e-05,2]
[424941815,1781308234000,-894.61906583,9.066e-05,2]
[424941816,1781308234000,-894.61906583,9.066e-05,2]
[424941818,1781308234000,-894.61906583,9.066e-05,2]
[424941817,1781308234000,-894.61906583,9.066e-05,2]
[424941823,1781308234000,-894.61906583,9.066e-05,2]
[424941820,1781308234000,-894.61906583,9.066e-05,2]
[424941813,1781308234000,-894.61906583,9.066e-05,2]
[424941848,1781308234000,-879.70874807,9.066e-05,2]
[424941829,1781308234000,-894.61906583,9.066e-05,2]
[424941845,1781308234000,-879.70874807,9.066e-05,2]
[424941872,1781308234000,-879.70874805,9.066e-05,2]
[424941871,1781308234000,-879.70874805,9.066e-05,2]
[424941874,1781308234000,-879.70874805,9.066e-05,2]
[424941875,1781308234000,-500.0,9.066e-05,2]
[424941877,1781308234000,-500.0,9.263e-05,2]
[424941876,1781308234000,-379.70874804,9.066e-05,2]
[424941878,1781308234000,-230.13746538,9.417e-05,2]
[424941883,1781308234000,-184786.39401311,9.653e-05,2]
[424941879,1781308234000,-1450.071,9.46e-05,2]
[424941880,1781308234000,-2500.0,9.553e-05,2]
[424941882,1781308234000,-137883.66618204,9.653e-05,2]
[424941884,1781308234000,-230651.89762258,9.653e-05,2]
[424941885,1781308234000,-1254.41808677,9.653e-05,2]
[424941886,1781308234000,-2000.0,9.653e-05,2]
[424941887,1781308234000,-5676.02198027,9.653e-05,2]
[424941888,1781308234000,-39726.28199221,9.653e-05,2]
[424941889,1781308234000,-8475.41891671,9.653e-05,2]
[424941890,1781308234000,-5941.17315993,9.653e-05,2]
[424941847,1781308234000,-879.70874807,9.066e-05,2]
[424941873,1781308234000,-879.70874805,9.066e-05,2]
[424941869,1781308234000,-879.70874805,9.066e-05,2]
[424941881,1781308234000,-173540.16030744,9.653e-05,2]
[424941868,1781308234000,-879.70874805,9.066e-05,2]
[424941846,1781308234000,-879.70874807,9.066e-05,2]
[424941870,1781308234000,-879.70874805,9.066e-05,2]
[424941852,1781308234000,-879.70874807,9.066e-05,2]
[424941849,1781308234000,-879.70874807,9.066e-05,2]
[424941850,1781308234000,-879.70874807,9.066e-05,2]
[424941855,1781308234000,-879.70874807,9.066e-05,2]
[424941851,1781308234000,-879.70874807,9.066e-05,2]
[424941854,1781308234000,-879.70874807,9.066e-05,2]
[424941856,1781308234000,-879.70874807,9.066e-05,2]
[424941857,1781308234000,-879.70874807,9.066e-05,2]
[424941853,1781308234000,-879.70874807,9.066e-05,2]
[424941858,1781308234000,-879.70874807,9.066e-05,2]
[424941860,1781308234000,-879.70874807,9.066e-05,2]
[424941862,1781308234000,-879.70874807,9.066e-05,2]
[424941865,1781308234000,-879.70874807,9.066e-05,2]
[424941859,1781308234000,-879.70874807,9.066e-05,2]
[424941861,1781308234000,-879.70874807,9.066e-05,2]
[424941864,1781308234000,-879.70874807,9.066e-05,2]
[424941863,1781308234000,-879.70874807,9.066e-05,2]
[424941866,1781308234000,-879.70874807,9.066e-05,2]
[424941867,1781308234000,-879.70874807,9.066e-05,2]
[424941977,1781308240000,-500.0,0.00011622,2]
[424941975,1781308240000,-500.0,0.00011622,2]
[424941980,1781308240000,-500.0,0.00011622,2]
[424941981,1781308240000,-500.0,0.00011622,2]
[424941982,1781308240000,-500.0,0.00011622,2]
[424941973,1781308240000,-150.0,0.00011492,2]
[424941972,1781308240000,-3587.70069406,0.00011411,2]
[424941974,1781308240000,-166.66,0.00011522,2]
[424941978,1781308240000,-500.0,0.00011622,2]
[424941976,1781308240000,-500.0,0.00011622,2]
[424941979,1781308240000,-500.0,0.00011622,2]
[424941990,1781308240000,-500.0,0.00011622,2]
[424941994,1781308240000,-154.86,0.00011958,2]
[424941984,1781308240000,-500.0,0.00011622,2]
[424941985,1781308240000,-500.0,0.00011622,2]
[424941987,1781308240000,-500.0,0.00011622,2]
[424941989,1781308240000,-500.0,0.00011622,2]
[424941993,1781308240000,-6159.19452706,0.0001191,2]
[424941991,1781308240000,-316.62019818,0.00011622,2]
[424941992,1781308240000,-166.66,0.00011663,2]
[424941986,1781308240000,-500.0,0.00011622,2]
[424941988,1781308240000,-500.0,0.00011622,2]
[424941970,1781308240000,-7026.36,0.00011301,2]
[424941983,1781308240000,-500.0,0.00011622,2]
[424941968,1781308240000,-6159.19452706,0.00011162,2]
[424941947,1781308240000,-23422.78553894,9.653e-05,2]
[424941967,1781308240000,-536.79,0.00011137,2]
[424941995,1781308240000,-250.0,0.00011979,2]
[424941945,1781308240000,-344.52648778,9.065e-05,2]
[424941944,1781308240000,-287.52008569,9.065e-05,2]
[424941946,1781308240000,-160.0,9.068e-05,2]
[424941949,1781308240000,-160.0,9.784e-05,2]
[424941948,1781308240000,-230.13746538,9.767e-05,2]
[424941950,1781308240000,-500.0,9.973e-05,2]
[424941952,1781308240000,-299.99,9.973e-05,2]
[424941951,1781308240000,-150.99,9.973e-05,2]
[424941955,1781308240000,-600.0,0.0001,3]
[424941953,1781308240000,-9999.99,9.973e-05,2]
[424941969,1781308240000,-166.66,0.0001124,2]
[424941956,1781308240000,-634.54,0.00010679,2]
[424941958,1781308240000,-6159.19452711,0.000109,2]
[424941957,1781308240000,-173.48,0.00010808,2]
[424941960,1781308240000,-150.0,0.00010959,2]
[424941959,1781308240000,-6159.19452706,0.000109,2]
[424941961,1781308240000,-166.66,0.00010959,2]
[424941963,1781308240000,-3587.70069407,0.00011099,2]
[424941962,1781308240000,-1221.58,0.00011,2]
[424941964,1781308240000,-3587.70069406,0.00011099,2]
[424941966,1781308240000,-166.66,0.000111,2]
[424941971,1781308240000,-166.66,0.00011381,2]
[424941965,1781308240000,-3587.70069406,0.00011099,2]
[424941954,1781308240000,-500.0,9.974e-05,2]
[424941996,1781308240000,-3587.70069406,0.00011993,2]
[424942077,1781308240000,-500.0,0.00013698,2]
[424941998,1781308240000,-499.93,0.00012091,2]
[424942046,1781308240000,-10383.71778398,0.00013679,2]
[424942044,1781308240000,-6941.26531671,0.00013679,2]
[424942053,1781308240000,-500.0,0.00013698,2]
[424942058,1781308240000,-500.0,0.00013698,2]
[424942061,1781308240000,-500.0,0.00013698,2]
[424942065,1781308240000,-500.0,0.00013698,2]
[424942098,1781308240000,-6159.19452706,0.00014152,2]
[424942056,1781308240000,-500.0,0.00013698,2]
[424942070,1781308240000,-500.0,0.00013698,2]
[424942072,1781308240000,-500.0,0.00013698,2]
[424942068,1781308240000,-387.37,0.00013698,2]
[424942074,1781308240000,-500.0,0.00013698,2]
[424942081,1781308240000,-500.0,0.00013698,2]
[424942079,1781308240000,-500.0,0.00013698,2]
[424942089,1781308240000,-500.0,0.00013699,2]
[424942087,1781308240000,-500.0,0.00013699,2]
[424942085,1781308240000,-763.08,0.00013699,2]
[424942091,1781308240000,-1113.51473185,0.00013699,2]
[424942093,1781308240000,-3587.70069406,0.00013737,2]
[424942083,1781308240000,-200.0,0.00013699,2]
[424942090,1781308240000,-436.59137547,0.00013699,2]
[424942095,1781308240000,-1500.0,0.00014102,2]
[424942003,1781308240000,-382.0,0.00012418,2]
[424942041,1781308240000,-563.97255406,0.00013425,2]
[424942049,1781308240000,-14049.5355,0.00013679,2]
[424942063,1781308240000,-364.35142186,0.00013698,2]
[424942039,1781308240000,-6159.19452706,0.00013405,2]
[424942001,1781308240000,-181.76121928,0.00012329,2]
[424942007,1781308240000,-424.437,0.00012418,2]
[424941997,1781308240000,-634.54,0.00012014,2]
[424942004,1781308240000,-1275.0,0.00012418,2]
[424942002,1781308240000,-3556.0,0.00012418,2]
[424942051,1781308240000,-500.0,0.00013698,2]
[424942005,1781308240000,-1232.547,0.00012418,2]
[424942006,1781308240000,-150.0,0.00012418,2]
[424941999,1781308240000,-3556.17,0.00012189,2]
[424942009,1781308240000,-3587.70069406,0.00012574,2]
[424942026,1781308240000,-1130.77117214,0.00013325,2]
[424942021,1781308240000,-1490.96994215,0.00013179,2]
[424942000,1781308240000,-150.84,0.00012329,2]
[424942023,1781308240000,-3934.69326679,0.00013179,2]
[424942019,1781308240000,-3587.70069406,0.00013156,2]
[424942037,1781308240000,-1500000.0,0.00013396,2]
[424942035,1781308240000,-500.0,0.00013356,2]